[Event "4NCL Div 2 2024-25"]
[Site "England"]
[Date "2025.01.26"]
[Round "4.1"]
[White "Khoury, Theo"]
[Black "Rees, Ioan"]
[Result "0-1"]
[Annotator "TA"]
[ECO "C01"]
[WhiteElo "2194"]
[BlackElo "2251"]
[PlyCount "82"]
[EventDate "2024.11.23"]
[EventType "team-tourn"]
[EventCountry "ENG"]
[SourceTitle "playchess.com"]
[Source "ChessBase"]
[SourceQuality "1"]
[TimeControl "40/6000+30:3000+30"]

{[%evp 13,82,15,15,10,8,0,0,0,32,35,17,16,76,36,30,15,28,8,4,18,65,58,82,0,36,-42,-31,-47,-33,-54,-12,-19,-24,-22,-7,-120,-89,-316,-322,-343,-337,-442,-422,-476,-487,-472,-489,-486,-454,-472,-405,-435,-391,-454,-439,-599,-591,-667,-569,-626,-623,-634,-637,-650,-537,-525,-494,-605,-568,-673,-661]} 1. e4 {[%emt 0:10:06]} e6 {[%emt 0:10:03]} 2. d4 {[%emt 0:00:11]} d5 {[%emt 0:00:03]} 3. Nc3 {[%emt 0:00:10]} Bb4 {[%emt 0:00:02]} 4. exd5 {[%emt 0:00:08]} exd5 {[%emt 0:00:04]} 5. Bd3 {[%emt 0:00:08]} Nf6 {[%emt 0:00:05]} 6. Nge2 {[%emt 0:00:04]} O-O {[%emt 0:00:23]} 7. O-O {[%emt 0:00:04]} Re8 {[%emt 0:00:05]} 8. a3 {[%emt 0:00:06] C01: French: Exchange Variation.} Bf8 $1 {[%emt 0:00:11][%mdl 4] outshines the older 8...Bd6.} 9. Bf4 {[%emt 0:05:49]} c6 {[%emt 0:00:15]} 10. Qd2 {[%emt 0:00:10] The position is equal.} Ne4 {[%emt 0:06:10]} 11. Bxe4 {[%emt 0:10:17]} dxe4 {[%emt 0:00:07]} 12. Rad1 $146 {[%emt 0:00:30]} (12. Ng3 f5 13. f3 exf3 14. Rxf3 g6 15. d5 Bg7 16. Kh1 Na6 17. Re1 Rxe1+ 18. Qxe1 Bd7 19. Re3 Qf6 20. Be5 Qf7 21. Bxg7 Qxg7 22. Re7 {1-0 Grigorov,G (2514)-Hilkevich,Z (2022) Titled Tuesday intern op 06th Aug Early blitz 2024 (2)}) 12... Na6 {[%emt 0:11:30]} (12... Qb6 $11) 13. Ng3 {[%emt 0:12:28]} f5 {[%emt 0:01:48]} 14. f3 {[%emt 0:00:51]} exf3 {[%emt 0:03:41]} 15. Rxf3 {[%emt 0:00:15]} g6 $1 {[%emt 0:20:32]} 16. d5 {[%emt 0:10:13]} Qf6 {[%emt 0:13:26]} (16... Bg7 $11 {deserves consideration.}) 17. Bg5 $14 {[%emt 0:13:42]} Qg7 {[%emt 0:00:09]} 18. Nge2 {[%emt 0:13:19]} (18. Be3 $16) 18... Nc5 {[%emt 0:04:39]} 19. d6 {[%emt 0:08:28]} ({Better is} 19. Re3 $14 Bd7 20. b4) 19... Bd7 {[%emt 0:01:50]} 20. Be3 {[%emt 0:04:26]} Ne6 {[%emt 0:04:37][%cal Bc5e6,Be6d8,Bd8f7][%mdl 32]} 21. h4 {[%emt 0:02:44][%cal Oh4h5]} Nd8 {[%emt 0:04:48]} 22. h5 {[%emt 0:04:13]} Nf7 {[%emt 0:01:05]} 23. hxg6 {[%emt 0:00:22]} hxg6 {[%emt 0:00:25][%cal Og6g5]} (23... Nxd6 $2 24. Bd4 Qxg6 25. Rg3 $18) 24. Bf4 {[%emt 0:01:12]} (24. Rg3 $11) 24... Re6 {[%emt 0:06:01][%cal Og6g5]} 25. Rd3 $2 {[%emt 0:02:27] [#] Loses the game.} (25. Rg3 $17) 25... g5 $1 $19 {[%emt 0:03:08]} 26. Bh2 {[%emt 0:02:46]} Rh6 {[%emt 0:03:41]} 27. Ng3 {[%emt 0:04:11]} Bxd6 {[%emt 0:03:46]} (27... Rxd6 28. Nxf5 Bxf5 29. Bxd6 (29. Rxd6 $2 Bxd6 30. Bxd6 Rd8 $19) 29... Bxd3 30. Bxf8 Qd4+ (30... Rxf8 31. Qxd3 Re8 32. Qf5 $11) 31. Kh1 $17) 28. Nf1 {[%emt 0:00:19][%cal Rh2d6]} Bc5+ {[%emt 0:00:23]} (28... f4 29. Ne4 Bg4 30. Nxd6 $17) 29. Kh1 {[%emt 0:00:03]} Be6 {[%emt 0:02:08]} 30. Ne2 {[%emt 0:01:08]} Re8 {[%emt 0:01:15][%cal Oe6c4]} ({Less strong is} 30... Qxb2 31. Nc3 $19) 31. Nd4 {[%emt 0:01:00]} Bc8 {[%emt 0:02:11]} ({Don't take} 31... f4 32. Re1 $19) 32. Re1 {[%emt 0:02:08]} Rf8 {[%emt 0:04:23]} 33. b4 {[%emt 0:02:08]} Bb6 {[%emt 0:01:29] Black is clearly winning.} 34. Kg1 {[%emt 0:00:47]} f4 {[%emt 0:00:29]} 35. c3 {[%emt 0:00:36]} Bf5 {[%emt 0:01:29][%cal Of7e5]} 36. Rf3 {[%emt 0:00:19] White is weak on the light squares} Ne5 {[%emt 0:00:41]} 37. Rf2 {[%emt 0:00:33][%cal Bf3f2,Bf2e2,Be2e7][%mdl 32]} Ng4 {[%emt 0:00:46]} 38. Rfe2 {[%emt 0:00:32]} Bg6 {[%emt 0:01:05] and ...Qh8 should not be overlooked} 39. Re7 {[%emt 0:00:29]} Rf7 {[%emt 0:01:07]} 40. Re8+ {[%emt 0:00:29] [#]} Kh7 $1 {[%emt 0:00:00]} 41. R1e6 {[%emt 0:22:27]} Rd7 {[%emt 0:22:36] Weighted Error Value: White=0.51/Black=0.22 (precise)   Loses game:     	White=1     	---        Mistake:       	White=3     	Black=2      Inaccurate:     	White=3     	Black=3      OK:         	White=4     	Black=12     Strong:       	---       	Black=3} 0-1

[Event "4NCL Div 2 2024-25"]
[Site "England"]
[Date "2025.01.26"]
[Round "4.2"]
[White "Jones, Steven A"]
[Black "Hobson, Kenneth"]
[Result "0-1"]
[Annotator "TA"]
[ECO "C44"]
[WhiteElo "2175"]
[BlackElo "2152"]
[PlyCount "100"]
[EventDate "2024.11.23"]
[EventType "team-tourn"]
[EventCountry "ENG"]
[SourceTitle "playchess.com"]
[Source "ChessBase"]
[SourceQuality "1"]
[TimeControl "40/6000+30:3000+30"]

{[%evp 15,100,8,18,9,16,19,33,40,88,47,49,44,53,57,45,0,55,73,54,45,54,0,0,-20,85,-47,-62,-69,-52,-43,0,0,77,61,83,24,106,96,94,66,64,59,57,53,56,20,27,0,20,20,72,29,35,35,34,-28,0,0,0,0,0,0,0,0,0,0,3,0,0,0,0,0,0,-515,-447,-1630,-1500,-1987,-1660,-2132,-3198,-2912,-4489,-2951,-2630,-29979,-5756]} 1. e4 {[%emt 0:15:07]} e5 {[%emt 0:10:20]} 2. Nf3 {[%emt 0:00:51]} Nc6 {[%emt 0:00:38]} 3. c3 {[%emt 0:00:15]} d5 {[%emt 0:05:38]} 4. Qa4 {[%emt 0:00:11]} Bd7 {[%emt 0:00:51]} 5. exd5 {[%emt 0:00:08]} Nd4 {[%emt 0:00:11]} 6. Qd1 {[%emt 0:00:05]} Nxf3+ {[%emt 0:00:08]} 7. Qxf3 {[%emt 0:00:05]} Nf6 {[%emt 0:01:27]} 8. Bc4 {[%emt 0:00:05]} e4 {[%emt 0:05:21]} 9. Qe2 {[%emt 0:00:06] C44: Ponziani Opening and Scotch Gambit.} Bd6 {[%emt 0:04:11] Black sacrificed a pawn} 10. d4 {[%emt 0:00:06]} h6 {[%emt 0:03:44]} 11. h3 {[%emt 0:02:09] White is slightly better.} Qe7 {[%emt 0:03:31]} (11... O-O $14 {should be considered.}) 12. Be3 {[%emt 0:06:12]} O-O $146 {[%emt 0:05:19]} (12... O-O-O 13. Nd2 Nh7 14. g4 g6 15. O-O-O f5 16. gxf5 gxf5 17. Nb3 f4 18. Bd2 Ng5 {1-0 Sedina,E (2337)-Motycakova,M (2121) Mitropa Cup (Women) 2012 (2)}) 13. Nd2 {[%emt 0:00:47]} Nh7 {[%emt 0:02:21]} 14. g4 {[%emt 0:00:34]} a5 {[%emt 0:08:00]} 15. Bb3 {[%emt 0:07:17]} Kh8 {[%emt 0:07:08]} ({Black should play} 15... a4 $11 16. Bc2 f5) 16. Bc2 $14 {[%emt 0:10:21]} f5 {[%emt 0:01:18]} 17. gxf5 {[%emt 0:00:07]} Bxf5 {[%emt 0:00:29]} 18. Qh5 {[%emt 0:07:00]} (18. c4 $14) 18... Rae8 $11 {[%emt 0:11:13]} 19. O-O-O {[%emt 0:01:38]} b5 {[%emt 0:01:16] [#]} (19... Qd7 $1 $11) 20. Rde1 {[%emt 0:02:52]} (20. Nb3 $1 $16) 20... Qd7 $1 $15 {[%emt 0:01:46]} 21. Rhg1 {[%emt 0:04:24]} Nf6 {[%emt 0:07:59][%cal Bh7f6,Bf6d5,Bd5f4][%mdl 32]} 22. Qh4 {[%emt 0:00:42]} Nxd5 {[%emt 0:03:35]} 23. Nxe4 {[%emt 0:03:08]} Bxe4 {[%emt 0:01:38]} (23... Bh2 $11 24. Rh1 Bxe4 25. Bxe4 (25. Rxh2 $2 Bxc2 26. Kxc2 b4 $19) 25... Bf4) 24. Bxe4 $16 {[%emt 0:09:57] [#] White wants to mate with Bxh6.} Nf4 {[%emt 0:01:28]} 25. Bg6 {[%emt 0:08:50] This pair of bishops is nice.} (25. f3 $16) 25... Re6 {[%emt 0:01:30]} (25... Nxg6 $11 26. Rxg6 Rf3) 26. Bc2 {[%emt 0:00:20]} Ref6 {[%emt 0:06:17]} 27. Bxf4 {[%emt 0:07:44]} Bxf4+ {[%emt 0:00:05] Black is weak on the light squares} 28. Kb1 {[%emt 0:00:13]} b4 $1 {[%emt 0:01:50]} 29. cxb4 {[%emt 0:02:04]} axb4 {[%emt 0:03:04]} 30. Re4 {[%emt 0:06:43]} Bd6 {[%emt 0:04:47]} 31. Rg2 {[%emt 0:00:46]} Qb5 {[%emt 0:01:02]} 32. Re1 {[%emt 0:01:07] and Qe4 would now be decisive Prevents Qf1} Qd7 {[%emt 0:03:24]} (32... Rf4 $11 {remains equal.} 33. Qg3 g5) 33. Qe4 {[%emt 0:00:56][%csl Gc2][%cal Re4h7]} g5 $1 {[%emt 0:01:05]} 34. Qd3 {[%emt 0:09:10][%cal Oh3h4]} Rf3 {[%emt 0:00:44]} 35. Qg6 {[%emt 0:00:28]} ({Better is} 35. Re3 $14 Rxf2 36. Rxf2 Rxf2 37. Ka1) 35... Qg7 {[%emt 0:01:24]} (35... Rxh3 {simplifies} 36. Qe4 Qe7 37. a4 Qxe4 38. Bxe4 b3) 36. Qh5 {[%emt 0:03:19]} Rxf2 {[%emt 0:02:06]} 37. Rxf2 {[%emt 0:00:23]} Rxf2 {[%emt 0:00:04]} 38. h4 {[%emt 0:00:37]} g4 $40 {[%emt 0:01:10][%cal Od6f8][%mdl 128] Black is up to no good.} 39. Bf5 $1 {[%emt 0:01:45]} g3 {[%emt 0:01:07][%cal Og3g2] Opposite bishops and equal position Active counter play!} (39... Qxd4 40. Re8+ (40. Bxg4 $2 Qxb2#)) 40. Re6 $1 {[%emt 0:00:53]} Rf1+ {[%emt 0:00:45]} (40... Qxd4 41. Re8+ (41. Rxh6+ Kg7 42. Qg5+ Kf7 43. Rh7+ Qg7 44. Qxg7+ Ke8 45. Rh8+ Bf8 46. Rxf8#)) 41. Kc2 {[%emt 0:50:22]} Bf8 $1 {[%emt 0:27:38] Dancing on a razor blade.} (41... Qxd4 42. Re8+ (42. Rxh6+ Kg7 43. Qg5+ Kf7 44. Rh7+ Qg7 45. Qxg7+ Ke8 46. Rh8+ Bf8 47. Rxf8#)) 42. Rg6 {[%emt 0:00:00]} Qh7 {[%emt 0:00:49][%cal Og3g2] and ...g2! would now be decisive} (42... Qxd4 $2 43. Rxh6+ Bxh6 44. Qxh6+ Kg8 45. Be6+ Rf7 46. Qg6+ (46. Bxf7+ Kxf7 47. Qh5+ Kg8 $11) 46... Kh8 47. Qxf7 $18 (47. Bxf7 b3+ 48. Bxb3 Qf2+ 49. Kc3 Qf3+ 50. Kc4 Qf1+ 51. Kc5 Qf8+ 52. Kb5 c6+ 53. Qxc6 Qf1+ 54. Bc4 Qf4 $18)) 43. Bd3 {[%emt 0:00:00]} (43. Rxg3 $2 {loses.} Rxf5 (43... Qxf5+ $2 44. Qxf5 Rxf5 45. a4 $19) 44. Qg6 Qxg6 45. Rxg6 Rf4 $19) 43... Rf2+ {[%emt 0:03:08]} 44. Kb3 $2 {[%emt 0:00:00][%mdl 8192]} (44. Kc1 $1 $11 {and White stays safe.}) 44... Qf7+ $19 {[%emt 0:02:35]} 45. Bc4 {[%emt 0:00:00]} (45. d5 $142 Bg7 46. Rxh6+ Bxh6 47. Qxh6+ Kg8 48. Bc4) 45... Rf3+ {[%emt 0:03:23]} 46. Ka4 {[%emt 0:00:00]} Qxc4 {[%emt 0:00:59]} 47. Rxh6+ {[%emt 0:00:00]} Bxh6 {[%emt 0:00:09]} 48. Qxh6+ {[%emt 0:00:00]} Kg8 {[%emt 0:00:06]} 49. Qg5+ {[%emt 0:00:00]} Kf8 {[%emt 0:01:23] ( -> ...b3+)} 50. Qh6+ {[%emt 0:00:49]} Ke8 {[%emt 0:02:52] Weighted Error Value: White=0.63/Black=0.19 (very precise)   Loses game:     	White=1     	---        Mistake:       	White=5     	Black=6      Inaccurate:     	White=6     	Black=2      OK:         	White=8     	Black=11     Best:        	White=4     	Black=2      Strong:       	White=2     	Black=4} 0-1

[Event "4NCL Div 2 2024-25"]
[Site "England"]
[Date "2025.01.26"]
[Round "4.3"]
[White "Zakarian, Dimitrios Levon"]
[Black "Blackburn, Jonathan L B"]
[Result "1/2-1/2"]
[Annotator "TA"]
[ECO "A40"]
[WhiteElo "1968"]
[BlackElo "2197"]
[PlyCount "52"]
[EventDate "2024.11.23"]
[EventType "team-tourn"]
[EventCountry "ENG"]
[SourceTitle "playchess.com"]
[Source "ChessBase"]
[SourceQuality "1"]
[TimeControl "40/6000+30:3000+30"]

{[%evp 11,52,12,38,7,10,0,0,-5,8,0,0,10,0,0,0,-16,-21,-35,-31,-39,-18,-28,0,18,0,-16,-4,-11,0,0,0,0,0,0,0,0,0,0,0,0,0,0,0]} 1. d4 {[%emt 0:10:01]} e6 {[%emt 0:10:04]} 2. Nf3 {[%emt 0:00:05]} b6 {[%emt 0:00:03]} 3. c4 {[%emt 0:00:10]} Bb7 {[%emt 0:00:05]} 4. a3 {[%emt 0:00:26]} f5 {[%emt 0:02:26]} 5. Nc3 {[%emt 0:00:20]} Nf6 {[%emt 0:00:21]} 6. d5 {[%emt 0:00:47]} Na6 {[%emt 0:15:05]} 7. b4 {[%emt 0:05:29] A40: Unusual replies to 1 d4.} Bd6 {[%emt 0:05:13]} 8. e3 {[%emt 0:05:40]} c6 {[%emt 0:06:09]} 9. Bb2 {[%emt 0:10:03]} Qe7 {[%emt 0:11:32]} 10. Be2 $146 {[%emt 0:06:24]} (10. dxc6 dxc6 11. Bd3 Rd8 12. Qb1 Ng4 13. Ne2 c5 14. b5 Nb8 15. e4 Nd7 16. exf5 Bxf3 17. gxf3 Nxh2 {0-1 Banas,J (2171)-Srvatka,I (2149) SVK-chT1W 2324 2023 (7.4)}) 10... O-O {[%emt 0:05:02][%cal Rc6d5]} 11. O-O {[%emt 0:01:32]} Nc7 {[%emt 0:03:44]} 12. dxe6 {[%emt 0:05:08]} dxe6 {[%emt 0:03:48]} 13. Nd4 {[%emt 0:02:14]} c5 {[%emt 0:05:18]} 14. bxc5 {[%emt 0:02:14]} bxc5 {[%emt 0:01:35]} 15. Ndb5 {[%emt 0:00:47]} Nxb5 {[%emt 0:01:21]} 16. Nxb5 {[%emt 0:00:51]} Rad8 {[%emt 0:07:30]} (16... Bb8 $142) 17. Nxd6 $1 $11 {[%emt 0:07:21] Successful Defense White. The position is equal.} Rxd6 {[%emt 0:00:03]} 18. Bxf6 {[%emt 0:00:17]} Rxf6 {[%emt 0:03:31]} 19. Qb3 {[%emt 0:00:13]} Rd2 {[%emt 0:09:03]} 20. Ra2 {[%emt 0:06:34]} Rxa2 {[%emt 0:01:54]} 21. Qxa2 {[%emt 0:00:02]} Rg6 {[%emt 0:03:17]} 22. g3 {[%emt 0:00:19]} Qh4 {[%emt 0:01:46]} 23. f3 $1 {[%emt 0:01:37]} e5 {[%emt 0:05:28]} 24. Qb1 {[%emt 0:03:59]} Rxg3+ $1 {[%emt 0:06:17]} 25. hxg3 {[%emt 0:00:07]} Qxg3+ {[%emt 0:00:04]} 26. Kh1 {[%emt 0:00:08][%cal Ob1f5] [#] aiming for Qxf5!.} Qh3+ {[%emt 0:01:10] Weighted Error Value: White=0.05 (flawless) /Black=0.05 (flawless)   Mistake:       	---       	Black=1      OK:         	White=6     	Black=8      Strong:       	White=2     	Black=1} 1/2-1/2

[Event "4NCL Div 2 2024-25"]
[Site "England"]
[Date "2025.01.26"]
[Round "4.4"]
[White "Saunders, Aron"]
[Black "Manley, Jon P"]
[Result "0-1"]
[Annotator "TA"]
[ECO "C54"]
[WhiteElo "2106"]
[BlackElo "2072"]
[PlyCount "140"]
[EventDate "2024.11.23"]
[EventType "team-tourn"]
[EventCountry "ENG"]
[SourceTitle "playchess.com"]
[Source "ChessBase"]
[SourceQuality "1"]
[TimeControl "40/6000+30:3000+30"]

{[%evp 11,140,15,22,22,32,9,20,12,9,14,32,23,35,22,22,11,27,29,32,31,29,32,29,-25,0,0,3,-4,0,0,0,0,4,0,22,12,62,0,14,-4,14,15,48,31,31,12,10,8,8,12,16,0,72,0,0,0,18,0,7,0,0,0,0,-14,0,0,-14,-9,165,162,209,172,29987,29988,29988,29989,29989,0,0,0,29991,29990,29990,29991,29991,0,0,-133,-131,-120,-106,-139,-127,-122,-131,-139,-133,-138,-119,-137,-25,-54,644,-87,0,0,0,0,0,-22,-39,-33,-58,-229,-18,-62,-4,-91,-83,-281,-87,-427,-414,-507,-525,-784,-784,-5057,-4538,-1350,-792]} 1. e4 {[%emt 0:10:05]} e5 {[%emt 0:10:08]} 2. Nf3 {[%emt 0:00:07]} Nc6 {[%emt 0:00:07]} 3. Bc4 {[%emt 0:00:04]} Bc5 {[%emt 0:00:19]} 4. c3 {[%emt 0:00:05]} Nf6 {[%emt 0:00:29]} 5. d3 {[%emt 0:00:17]} d6 {[%emt 0:02:06]} 6. O-O {[%emt 0:00:08]} a6 {[%emt 0:01:22]} 7. a4 {[%emt 0:00:11] 7.Re1 is the recent fashion. C54: Giuoco Piano: 4 c3 Nf6, main lines with 5 d4 and 5 d3.} Ba7 {[%emt 0:00:29]} 8. Na3 {[%emt 0:02:04]} h6 {[%emt 0:02:18]} 9. Nc2 {[%emt 0:01:30] The position is equal.} O-O {[%emt 0:03:25]} 10. Be3 {[%emt 0:01:53]} Re8 {[%emt 0:03:10]} 11. Re1 {[%emt 0:03:07]} Be6 {[%emt 0:01:34]} 12. Bxe6 {[%emt 0:02:25]} Rxe6 {[%emt 0:00:21]} 13. a5 $146 {[%emt 0:08:47]} (13. Bxa7 Rxa7 14. d4 exd4 15. Nfxd4 Nxd4 16. Qxd4 Ra8 17. f3 a5 18. Ne3 Qd7 19. Red1 {½-½ So,W (2773)-Mamedyarov,S (2747) Tata Steel-A 78th 2016 (8)}) 13... Qd7 {[%emt 0:23:26]} 14. c4 {[%emt 0:04:02]} Rd8 {[%emt 0:06:19]} 15. Qd2 {[%emt 0:03:14]} Bxe3 {[%emt 0:02:50]} 16. Nxe3 {[%emt 0:00:45]} Ne7 {[%emt 0:01:12]} 17. Nd5 {[%emt 0:09:40]} (17. Rad1) 17... c6 {[%emt 0:02:48]} 18. Nb6 {[%emt 0:00:29]} Qe8 {[%emt 0:01:00]} 19. Qb4 {[%emt 0:04:51]} Ng6 {[%emt 0:04:47]} 20. Rad1 {[%emt 0:09:22]} Re7 {[%emt 0:05:28]} 21. Qa3 {[%emt 0:07:23]} Nf4 {[%emt 0:05:05]} 22. b4 {[%emt 0:02:13]} Ne6 {[%emt 0:01:07]} 23. Qb2 {[%emt 0:03:11]} Nc7 {[%emt 0:02:37]} (23... Nd7 $11) 24. Na4 {[%emt 0:01:59]} (24. Nh4 $14 {should be considered.}) 24... Ne6 $11 {[%emt 0:02:59]} 25. Rb1 {[%emt 0:01:45]} Nc7 {[%emt 0:00:52]} 26. h3 {[%emt 0:01:44]} Re6 {[%emt 0:01:18]} 27. Nc3 {[%emt 0:01:23]} Re7 {[%emt 0:04:55]} 28. b5 {[%emt 0:03:41]} axb5 {[%emt 0:04:47]} 29. cxb5 {[%emt 0:28:35]} Ra8 {[%emt 0:01:16]} 30. bxc6 {[%emt 0:00:00]} bxc6 {[%emt 0:00:23][%cal Oc7e6]} 31. Qa3 {[%emt 0:00:00]} Na6 {[%emt 0:05:42]} (31... Qd8 $11) 32. Na4 {[%emt 0:00:00]} ({Better is} 32. Qxd6 $16 Rd8 33. Qa3 Rxd3 34. Qb3) 32... c5 {[%emt 0:00:46]} 33. Nb6 {[%emt 0:00:00]} Raa7 {[%emt 0:01:01]} 34. Nd2 {[%emt 0:00:00][%cal Bf3d2,Bd2c4,Bc4e3,Be3f5][%mdl 32]} Nb4 {[%emt 0:00:58]} 35. Rec1 $36 {[%emt 0:00:00][%mdl 2048] Dodges Nc2. White has good play.} Rec7 {[%emt 0:02:35] Prevents Nc8.} 36. Ndc4 {[%emt 0:00:00]} Qe6 {[%emt 0:01:02]} 37. Ne3 {[%emt 0:00:00]} Rcb7 {[%emt 0:02:02]} 38. Rxb4 {[%emt 0:00:00]} cxb4 {[%emt 0:00:48]} 39. Qxb4 {[%emt 0:00:00]} Qa2 $2 {[%emt 0:02:50]} (39... Nh5 $11 {and Black has nothing to worry.}) 40. Qxd6 $18 {[%emt 0:00:45]} Qxa5 {[%emt 0:01:04]} (40... Kh7 $142) 41. Nf5 $1 {[%emt 0:27:58] Intending Rc8+ and mate.} Qxb6 $2 {[%emt 0:35:23]} (41... Rxb6 $2 42. Rc8+ Kh7 43. Qf8 Qe1+ 44. Kh2 $18) (41... Kh7 $18 42. Qf8 Nh5) 42. Rc8+ {[%emt 0:00:19]} Kh7 {[%emt 0:00:29] [#]} 43. Rh8+ $3 {[%emt 0:01:42][%mdl 512]} Kg6 {[%emt 0:00:09] [#]} 44. Rxh6+ $2 {[%emt 0:09:05]} gxh6 $11 {[%emt 0:00:32]} 45. Qf8 $1 {[%emt 0:00:13][%csl Gf5][%cal Rf8h6]} Qb1+ $2 {[%emt 0:02:21][%mdl 8192]} (45... Ra1+ $11 46. Kh2 Ng4+ (46... Qxf2 47. Qxh6#) 47. hxg4 Kg5 (47... Qxf2 48. Qxh6#)) 46. Kh2 {[%emt 0:00:05][%csl Gf5][%cal Rf8h6]} Ng4+ {[%emt 0:00:18]} 47. hxg4 {[%emt 0:00:35][%csl Gf5][%cal Rf8h6]} f6 {[%emt 0:00:36]} 48. Qxh6+ $2 {[%emt 0:05:21]} (48. Qg8+ $1 {mates} Rg7 49. Nh4+ Kg5 50. Qe6 Qh1+ 51. Kxh1 Ra1+ 52. Kh2 Rh1+ 53. Kg3 (53. Kxh1 Kxh4 54. g3+ Kh3 55. g5+ f5 56. Qxf5#) 53... Rh3+ 54. gxh3 h5 55. Qf5+ Kh6 56. Qxh5#) 48... Kf7 {[%emt 0:00:10][%cal Of7e6]} 49. Qg7+ {[%emt 0:02:11]} (49. Qh5+ $11 {remains equal.} Kg8 50. Qg6+ Rg7 51. Nxg7 Rxg7 52. Qe8+ Kh7 53. Qh5+ Kg8 54. Qe8+) 49... Ke6 $17 {[%emt 0:08:57]} 50. Qg8+ {[%emt 0:00:05] [#]} Kd7 $1 {[%emt 0:01:46]} 51. Qd5+ {[%emt 0:01:20]} Kc8 {[%emt 0:01:24]} 52. Qg8+ {[%emt 0:04:57]} Kc7 {[%emt 0:00:48]} 53. Qf7+ {[%emt 0:00:13]} Kb6 {[%emt 0:01:22]} 54. Qxf6+ {[%emt 0:00:05]} Ka5 {[%emt 0:00:23]} 55. Qxe5+ {[%emt 0:00:06]} Rb5 {[%emt 0:00:23]} (55... Ka4 $17 56. Qd4+ Ka3) 56. Qc3+ $11 {[%emt 0:00:28]} Ka4 $2 {[%emt 0:00:56][%mdl 8192]} (56... Qb4 $15 57. Qa1+ Kb6 58. Qf6+ Kc7) 57. Nd4 $2 {[%emt 0:01:16] [#]} (57. Qd4+ $18 Kb3 58. Qxa7) 57... Rh7+ {[%emt 0:01:12]} (57... Rbb7 $1 $17 {[%cal Rb7h7] White must now prevent ...Rh7+.} 58. Ne6 Rh7+ 59. Kg3 Qb8+ 60. Nf4 Qb4 61. Qc2+ Ka3 62. Qc1+ Qb2 63. Qc5+ Ka2) 58. Kg3 {[%emt 0:00:06]} Rbb7 {[%emt 0:01:36]} 59. Qc4+ {[%emt 0:01:48]} Ka5 {[%emt 0:00:21]} 60. e5 {[%emt 0:00:27][%cal Be4e5,Be5e6][%mdl 32]} Rhc7 {[%emt 0:00:55]} 61. Qd5+ {[%emt 0:00:51]} Ka4 {[%emt 0:00:12]} 62. Nf3 $2 {[%emt 0:00:48]} (62. Qe4 $15) 62... Rc2 $2 {[%emt 0:01:31]} (62... Rd7 $19 63. Qe4+ Qb4) 63. e6 {[%emt 0:00:39][%cal Oe6e7]} Re2 {[%emt 0:01:35]} ({Black should play} 63... Rc8 $15) 64. Qc4+ {[%emt 0:00:55]} (64. Qc6+ $11 Qb5 65. Qxb5+ Rxb5 66. Nd4) 64... Rb4 $17 {[%emt 0:00:21]} 65. Qa6+ {[%emt 0:00:49]} Kb3 {[%emt 0:00:02]} 66. d4 $2 {[%emt 0:00:13][%mdl 8192]} (66. e7 $17 {was the crucial defense.} Qb2 (66... Rxe7 $2 67. Nd2+ Kc2 68. Nxb1 $18) (66... Qf1 67. Qa7 $15) 67. Qd6) 66... Qc2 {[%emt 0:00:32]} 67. e7 {[%emt 0:02:38]} Rxe7 {[%emt 0:00:20] Black is clearly winning.} (67... Rxf2 $2 {loses.} 68. e8=Q (68. e8=R Rxg2+ 69. Kh3 Qf2 $11) 68... Rxg2+ 69. Kh3 $18) 68. d5 {[%emt 0:02:41]} Re2 {[%emt 0:00:22]} 69. Qa7 {[%emt 0:00:09]} Qe4 {[%emt 0:00:23][%csl LRd5,LRg4]} 70. Qg7 {[%emt 0:00:56]} Qxd5 {[%emt 0:01:01] Both players deserved the win here.   Weighted Error Value: White=0.42/Black=0.45  Loses game:     	White=2     	Black=3      Missed win:     	White=1     	Black=2      Mistake:       	White=4     	Black=7      Inaccurate:     	White=3     	Black=1      OK:         	White=13    	Black=16     Best:        	White=6     	Black=3      Strong:       	White=1     	Black=1} 0-1